fUST/lending_fUST_20241008
["ID","MTS","AMOUNT","RATE_DAILY","PERIOD"]
[340009946,1728328247955,-384.02693,0.000295,7]
[340009947,1728328247965,-151.0,0.000295,7]
[340009948,1728328247975,-151.0,0.000295,7]
[340009949,1728328247986,-151.0,0.000295,7]
[340009950,1728328247997,-384.02693,0.000295,7]
[340009952,1728328248008,-384.02693,0.000295,7]
[340009954,1728328248019,-384.02693,0.000295,7]
[340009956,1728328248028,-151.0,0.000295,7]
[340009958,1728328248038,-151.358877,0.000295,7]
[340009960,1728328248047,-380.14682,0.000295,7]
[340009962,1728328248057,-380.14682,0.000295,7]
[340009964,1728328248067,-380.14682,0.000295,7]
[340009966,1728328248076,-380.14682,0.000295,7]
[340009968,1728328248087,-380.14682,0.000295,7]
[340009970,1728328248099,-380.14682,0.000295,7]
[340009972,1728328248109,-151.0,0.000295,7]
[340009974,1728328248120,-151.0,0.000295,7]
[340009976,1728328248134,-151.0,0.000295,7]
[340009978,1728328248143,-151.0,0.000295,7]
[340009980,1728328248153,-151.0,0.000295,7]
[340009982,1728328248165,-214.035748,0.000295,7]
[340009985,1728328248175,-151.0,0.000295,7]
[340009986,1728328248184,-151.0,0.000295,7]
[340009988,1728328248194,-180.631109,0.000295,7]
[340009991,1728328248206,-228.047609,0.000295,7]
[340009993,1728328248215,-228.047609,0.000295,7]
[340009995,1728328248225,-228.047609,0.000295,7]
[340009996,1728328248234,-228.047609,0.000295,7]
[340009999,1728328248244,-228.047609,0.000295,7]
[340010001,1728328248254,-151.0,0.000295,7]
[340010003,1728328248263,-151.0,0.000295,7]
[340010005,1728328248273,-153.728651,0.000295,7]
[340010007,1728328248283,-151.0,0.000295,7]
[340010009,1728328248292,-232.03519,0.000295,7]
[340010011,1728328248302,-1002.951402,0.000295,7]
[340010012,1728328248311,-1002.951402,0.000295,7]
[340010014,1728328248321,-1002.951402,0.000295,7]
[340010016,1728328248331,-1002.951402,0.000295,7]
[340010018,1728328248340,-1002.951402,0.000295,7]
[340010020,1728328248350,-1002.951402,0.000295,7]
[340010023,1728328248360,-163.789079,0.000295,7]
[340010025,1728328248369,-163.789079,0.000295,7]
[340010027,1728328248379,-163.789079,0.000295,7]
[340010029,1728328248389,-163.789079,0.000295,7]
[340010031,1728328248399,-163.789079,0.000295,7]
[340010033,1728328248408,-163.789079,0.000295,7]
[340010035,1728328248417,-997.75284,0.000295,7]
[340010037,1728328248427,-997.75284,0.000295,7]
[340010039,1728328248436,-997.75284,0.000295,7]
[340010041,1728328248446,-997.75284,0.000295,7]
[340010043,1728328248455,-997.75284,0.000295,7]
[340010045,1728328248465,-997.75284,0.000295,7]
[340010047,1728328248475,-353.239473,0.000295,7]
[340010049,1728328248484,-353.239473,0.000295,7]
[340010051,1728328248494,-353.239473,0.000295,7]
[340010053,1728328248503,-353.239473,0.000295,7]
[340010055,1728328248512,-353.239473,0.000295,7]
[340010057,1728328248523,-353.239473,0.000295,7]
[340010059,1728328248533,-151.0,0.000295,7]
[340010061,1728328248543,-151.0,0.000295,7]
[340010063,1728328248552,-151.0,0.000295,7]
[340010065,1728328248562,-151.0,0.000295,7]
[340010067,1728328248571,-151.0,0.000295,7]
[340010069,1728328248581,-151.0,0.000295,7]
[340010071,1728328248589,-151.0,0.000295,7]
[340010073,1728328248599,-754.246236,0.000295,7]
[340010075,1728328248609,-754.246236,0.000295,7]
[340010077,1728328248618,-754.246236,0.000295,7]
[340010079,1728328248627,-754.246236,0.000295,7]
[340010081,1728328248637,-754.246236,0.000295,7]
[340010083,1728328248647,-754.246236,0.000295,7]
[340010085,1728328248657,-212.387334,0.000295,7]
[340010087,1728328248668,-212.387334,0.000295,7]
[340010089,1728328248678,-212.387334,0.000295,7]
[340010091,1728328248688,-212.387334,0.000295,7]
[340010093,1728328248698,-212.387334,0.000295,7]
[340010095,1728328248707,-212.387334,0.000295,7]
[340010097,1728328248716,-212.387334,0.000295,7]
[340010099,1728328248727,-212.387334,0.000295,7]
[340010101,1728328248737,-151.0,0.000295,7]
[340010104,1728328248747,-200.0,0.000295,60]
[340010105,1728328248757,-230.708431,0.000295,7]
[340010108,1728328248767,-230.708431,0.000295,7]
[340010110,1728328248777,-230.708431,0.000295,7]
[340010112,1728328248787,-151.0,0.000295,7]
[340010114,1728328248797,-230.708431,0.000295,7]
[340010116,1728328248807,-151.0,0.000295,7]
[340010118,1728328248816,-151.0,0.000295,7]
[340010120,1728328248826,-151.0,0.000295,7]
[340010122,1728328248836,-230.708431,0.000295,7]
[340010124,1728328248845,-230.708431,0.000295,7]
[340010126,1728328248854,-230.708431,0.000295,7]
[340010128,1728328248863,-230.708431,0.000295,7]
[340010130,1728328248872,-181.800336,0.000295,7]
[340010132,1728328248881,-181.800336,0.000295,7]
[340010134,1728328248891,-181.800336,0.000295,7]
[340010136,1728328248900,-181.800336,0.000295,7]
[340010142,1728328249000,-181.800336,0.000295,7]
[340010143,1728328249011,-181.800336,0.000295,7]
[340010145,1728328249021,-181.800336,0.000295,7]
[340010147,1728328249030,-181.800336,0.000295,7]
[340010149,1728328249040,-151.0,0.000295,7]
[340010151,1728328249049,-151.0,0.000295,7]
[340010153,1728328249059,-151.0,0.000295,7]
[340010155,1728328249068,-151.0,0.000295,7]
[340010157,1728328249077,-151.0,0.000295,7]
[340010159,1728328249087,-151.0,0.000295,7]
[340010161,1728328249096,-151.0,0.000295,7]
[340010163,1728328249105,-151.0,0.000295,7]
[340010166,1728328249116,-1000.0,0.000295,28]
[340010168,1728328249129,-1000.0,0.000295,28]
[340010170,1728328249139,-1000.0,0.000295,28]
[340010172,1728328249149,-1000.0,0.000295,28]
[340010174,1728328249159,-1000.0,0.000295,28]
[340010176,1728328249169,-1000.0,0.000295,28]
[340010178,1728328249179,-1000.0,0.000295,28]
[340010180,1728328249188,-1000.0,0.000295,28]
[340010182,1728328249200,-1000.0,0.000295,28]
[340010184,1728328249209,-1000.0,0.000295,28]
[340010186,1728328249218,-1000.0,0.000295,28]
[340010188,1728328249227,-1000.0,0.000295,28]
[340010190,1728328249237,-1000.0,0.000295,28]
[340010192,1728328249247,-1000.0,0.000295,28]
[340010194,1728328249257,-1000.0,0.000295,28]
[340010196,1728328249267,-1000.0,0.000295,28]
[340010198,1728328249276,-1000.0,0.000295,28]
[340010200,1728328249287,-1000.0,0.000295,28]
[340010202,1728328249296,-1000.0,0.000295,28]
[340010204,1728328249306,-1000.0,0.000295,28]
[340010206,1728328249316,-1000.0,0.000295,28]
[340010209,1728328249326,-1000.0,0.000295,28]
[340010211,1728328249344,-1000.0,0.000295,28]
[340010213,1728328249354,-1000.0,0.000295,28]
[340010215,1728328249364,-1000.0,0.000295,28]
[340010217,1728328249373,-1000.0,0.000295,28]
[340010219,1728328249384,-1000.0,0.000295,28]
[340010221,1728328249394,-1000.0,0.000295,28]
[340010223,1728328249404,-1000.0,0.000295,28]
[340010225,1728328249416,-1000.0,0.000295,28]
[340010227,1728328249426,-1000.0,0.000295,28]
[340010230,1728328249437,-394.48107,0.000295,7]
[340010231,1728328249446,-1000.0,0.000295,28]
[340010233,1728328249456,-394.48107,0.000295,7]
[340010234,1728328249466,-1000.0,0.000295,28]
[340010236,1728328249475,-394.48107,0.000295,7]
[340010237,1728328249484,-1000.0,0.000295,28]
[340010239,1728328249495,-394.48107,0.000295,7]
[340010240,1728328249506,-1000.0,0.000295,28]
[340010242,1728328249516,-151.0,0.000295,7]
[340010243,1728328249526,-1000.0,0.000295,28]
[340010245,1728328249535,-151.0,0.000295,7]
[340010246,1728328249547,-1000.0,0.000295,28]
[340010248,1728328249558,-1000.0,0.000295,28]
[340010250,1728328249568,-1000.0,0.000295,28]
[340010251,1728328249580,-1000.0,0.000295,28]
[340010253,1728328249590,-1000.0,0.000295,28]
[340010255,1728328249600,-394.48107,0.000295,7]
[340010256,1728328249610,-1000.0,0.000295,28]
[340010258,1728328249619,-394.48107,0.000295,7]
[340010259,1728328249629,-1000.0,0.000295,28]
[340010260,1728328249639,-394.48107,0.000295,7]
[340010262,1728328249649,-1000.0,0.000295,28]
[340010264,1728328249658,-151.0,0.000295,7]
[340010265,1728328249668,-394.48107,0.000295,7]
[340010267,1728328249678,-151.0,0.000295,7]
[340010269,1728328249687,-1000.0,0.000295,28]
[340010270,1728328249697,-1000.0,0.000295,28]
[340010272,1728328249707,-151.0,0.000295,7]
[340010273,1728328249717,-1000.0,0.000295,28]
[340010275,1728328249727,-166.241624,0.000295,7]
[340010277,1728328249737,-1000.0,0.000295,28]
[340010278,1728328249748,-1000.0,0.000295,28]
[340010280,1728328249759,-1000.0,0.000295,28]
[340010282,1728328249768,-1000.0,0.000295,28]
[340010284,1728328249781,-1000.0,0.000295,28]
[340010285,1728328249792,-1000.0,0.000295,28]
[340010287,1728328249804,-1000.0,0.000295,28]
[340010289,1728328249815,-1000.0,0.000295,28]
[340010291,1728328249826,-1000.0,0.000295,28]
[340010292,1728328249838,-1000.0,0.000295,28]
[340010294,1728328249850,-1000.0,0.000295,28]
[340010296,1728328249861,-1000.0,0.000295,28]
[340010298,1728328249872,-1000.0,0.000295,28]
[340010300,1728328249884,-1000.0,0.000295,28]
[340010301,1728328249893,-1000.0,0.000295,28]
[340010303,1728328249904,-1000.0,0.000295,28]
[340010305,1728328249915,-1000.0,0.000295,28]
[340010307,1728328249926,-1000.0,0.000295,28]
[340010308,1728328249935,-1000.0,0.000295,28]
[340010310,1728328249945,-1000.0,0.000295,28]
[340010312,1728328249955,-1000.0,0.000295,28]
[340010314,1728328249965,-1000.0,0.000295,28]
[340010315,1728328249976,-1000.0,0.000295,28]
[340010317,1728328249986,-1000.0,0.000295,28]
[340010319,1728328249996,-1000.0,0.000295,28]
[340010320,1728328250005,-1000.0,0.000295,28]
[340010322,1728328250015,-1000.0,0.000295,28]
[340010324,1728328250024,-1000.0,0.000295,28]
[340010325,1728328250034,-1000.0,0.000295,28]
[340010327,1728328250043,-1196.845105,0.000295,7]
[340010329,1728328250053,-1196.845105,0.000295,7]
[340010330,1728328250063,-1196.845105,0.000295,7]
[340010332,1728328250075,-1196.845105,0.000295,7]
[340010334,1728328250086,-1196.845105,0.000295,7]
[340010336,1728328250095,-126.06444598,0.000295,7]
[340010338,1728328250113,-627.7,0.000295,7]
[340010340,1728328250130,-443.08065902,0.000295,7]
[340010342,1728328250141,-224.91934098,0.000295,7]
[340014497,1728328383299,-150.0,0.000299,120]
[340014498,1728328383358,-269.0,0.0003,120]
[340014499,1728328383422,-581.0,0.00030136,120]
[340014500,1728328383520,-419.0,0.00030136,120]
[340014501,1728328383573,-581.0,0.0003041,120]
[340014502,1728328383667,-419.0,0.0003041,120]
[340014503,1728328383797,-1000.0,0.00030684,120]
[340014504,1728328383847,-725.9,0.00030958,120]
[340014505,1728328410054,207.53797702,0.00028,120]
[340014506,1728328464001,373.46202298,0.000302,120]
[340014507,1728328484434,605.58186921,0.000301,120]
[340014508,1728328566717,326.53797702,0.000301,120]
[340014509,1728328858258,67.88015377,0.00030136,120]
[340014510,1728329238138,-165.524599,0.00018,2]
[340014511,1728329238165,-165.524599,0.00024262,2]
[340014512,1728329238191,-168.101111,0.00024879,2]
[340014513,1728329238213,-254.0,0.00024932,2]
[340014514,1728329238236,-254.0,0.00025,2]
[340014515,1728329238259,-157.89513854,0.00025001,30]
[340014516,1728329238286,-168.101111,0.00025041,2]
[340014517,1728329238310,-159.535733,0.00025191,2]
[340014518,1728329238335,-168.101111,0.00025203,2]
[340014519,1728329238361,-300.0,0.00025282,2]
[340014520,1728329238385,-131.69161836,0.00025282,2]
[340014541,1728329359154,-6872.57740064,0.000134,2]
[340014542,1728329359176,-165.524599,0.00018,2]
[340014543,1728329359199,-176.25795489,0.00019999,2]
[340014544,1728329373191,-123.74204511,0.00019999,2]
[340014545,1728329373215,-300.0,0.00019999,2]
[340014546,1728329373235,-4745.0912186,0.0002,5]
[340014547,1728329373257,-132.47966319,0.00021777,2]
[340014575,1728329431789,-152.0,0.00022,120]
[340014576,1728329431800,-153.84891193,0.00022073,2]
[340014577,1728329431815,-212.55376887,0.00022073,2]
[340014578,1728329431826,-2074.48198241,0.000247,2]
[340014579,1728329431835,-165.524599,0.00024999,2]
[340014581,1728329431847,-32.46771223,0.00025282,2]
[340014583,1728329431860,-267.53228777,0.00025282,2]
[340014585,1728329431871,-300.0,0.00025282,2]
[340014587,1728329431882,-88.71280099,0.00025283,2]
[340014640,1728329437998,-24811.28719901,0.00025283,2]
[340014642,1728329438014,-168.101111,0.00025365,2]
[340014645,1728329438028,-168.101111,0.00025527,2]
[340014647,1728329438042,-222.276,0.00025544,2]
[340014649,1728329438054,-294.784655,0.00025556,2]
[340014651,1728329438069,-168.101111,0.00025689,2]
[340014653,1728329438082,-168.101111,0.00025851,2]
[340014655,1728329438096,-254.0,0.0002589,2]
[340014656,1728329438110,-168.101111,0.00026013,2]
[340014657,1728329438123,-168.101111,0.00026175,2]
[340014658,1728329438137,-248.2,0.000267,2]
[340014659,1728329438152,-1500.0,0.000268,2]
[340014660,1728329438168,-260.0,0.00027185,2]
[340014661,1728329438183,-1500.0,0.00027233,2]
[340014662,1728329438199,-420.0,0.00027381,2]
[340014663,1728329438213,-1500.0,0.00027667,2]
[340014664,1728329438224,-300.0,0.000277,2]
[340014665,1728329438234,-420.0,0.0002781,2]
[340014666,1728329438244,-292.48877965,0.0002799,60]
[340014667,1728329438258,-170.18082919,0.00028,120]
[340014668,1728329438270,-240.0369908,0.00028025,2]
[340014669,1728329438780,-274.2646154,0.00028025,2]
[340014670,1728329438791,-1500.0,0.000281,2]
[340014671,1728329438800,-500.06714848,0.00028208,2]
[340014672,1728329438810,-514.3016062,0.00028525,2]
[340014673,1728329438819,-1500.0,0.00028533,2]
[340014674,1728329438829,-500.0,0.00028675,5]
[340014675,1728329438838,-306.0,0.00028696,2]
[340014676,1728329438847,-209.6916673,0.00028696,2]
[340014677,1728329438857,-209.6916673,0.00028696,2]
[340014678,1728329438866,-209.40229,0.00028696,2]
[340014679,1728329438876,-300.0,0.000287,2]
[340014680,1728329438887,-512.26472532,0.00028967,2]
[340014692,1728329439970,-618.46,0.00028967,2]
[340014693,1728329439983,-369.27527468,0.00028967,2]
[340014694,1728329439994,-254.0,0.00028997,2]
[340014695,1728329440003,-514.3016062,0.00029025,2]
[340014696,1728329440014,-500.0,0.00029267,5]
[340014697,1728329440023,-153.0,0.00029346,2]
[340014698,1728329440033,-153.0,0.00029346,2]
[340014699,1728329440043,-153.0,0.00029346,2]
[340014700,1728329440052,-153.0,0.00029346,2]
[340014701,1728329440061,-153.0,0.00029346,2]
[340014702,1728329440071,-153.0,0.00029346,2]
[340014703,1728329440081,-153.0,0.00029346,2]
[340014704,1728329440091,-153.0,0.00029346,2]
[340014705,1728329440101,-33.96460819,0.00029346,2]
[340014706,1728329440114,-119.03539181,0.00029346,2]
[340014707,1728329440123,-153.0,0.00029346,2]
[340014708,1728329440134,-153.0,0.00029346,2]
[340014709,1728329440144,-153.0,0.00029346,2]
[340014710,1728329440154,-153.0,0.00029348,2]
[340014711,1728329440164,-153.0,0.00029348,2]
[340014712,1728329440176,-153.0,0.00029348,2]
[340014713,1728329440187,-153.0,0.00029348,2]
[340014714,1728329440196,-153.0,0.00029348,2]
[340014715,1728329440206,-153.0,0.00029348,2]
[340014716,1728329440217,-153.0,0.00029348,2]
[340014717,1728329440227,-146.14369817,0.00029352,2]
[340014718,1728329440239,-6.85630183,0.00029352,2]
[340014719,1728329440249,-153.0,0.00029352,2]
[340014720,1728329440263,-153.0,0.00029352,2]
[340014721,1728329440276,-153.0,0.00029352,2]
[340014722,1728329440285,-153.0,0.00029352,2]
[340014723,1728329440295,-153.0,0.00029352,2]
[340014724,1728329440305,-48.4265212,0.00029352,2]
[340014737,1728329443021,-104.5734788,0.00029352,2]
[340014738,1728329443032,-153.0,0.00029352,2]
[340014739,1728329443042,-153.0,0.00029352,2]
[340014740,1728329443053,-153.0,0.00029352,2]
[340014741,1728329443064,-153.0,0.00029353,2]
[340014742,1728329443076,-153.0,0.00029353,2]
[340014743,1728329443087,-250.207299,0.000294,2]
[340014744,1728329443098,-986.55823359,0.000294,2]
[340014745,1728329443111,-513.44176641,0.000294,2]
[340014746,1728329443123,-306.0,0.00029479,2]
[340014747,1728329443134,-153.0,0.00029479,2]
[340014748,1728329443150,-306.0,0.00029479,2]
[340014749,1728329443160,-153.0,0.00029479,2]
[340014750,1728329443169,-209.6916673,0.00029479,2]
[340014751,1728329443178,-150.01,0.00029489,2]
[340014752,1728329443189,-514.3016062,0.00029525,2]
[340014753,1728329443198,-587.0,0.00029654,2]
[340014754,1728329443207,-300.0,0.000297,2]
[340014755,1728329443217,-306.0,0.00029769,2]
[340014756,1728329443226,-1500.0,0.00029833,2]
[340014757,1728329443236,-828.32446976,0.0002988,30]
[340014758,1728329443245,-491.61,0.00029937,3]
[340014759,1728329443258,-163.87,0.00029947,3]
[340014760,1728329443268,-268.77255359,0.00029957,3]
[340014761,1728329443280,-58.96744641,0.00029957,3]
[340014762,1728329443290,-1391.94681392,0.0002998,4]
[340014763,1728329443299,-209.27783035,0.0002998,4]
[340014764,1728329443353,-869.94591213,0.0002998,4]
[340014765,1728329443366,-330.29329238,0.0002998,4]
[340014766,1728329443378,-995.76253536,0.0002998,4]
[340014772,1728329445843,-150.01,0.00029489,2]
[340014773,1728329445854,-3362.7729093,0.0002998,4]
[340014774,1728329445865,-500.0,0.00029989,2]
[340014775,1728329445878,-30.61932587,0.00029989,2]
[340014776,1728329445892,-145.89799464,0.00029989,2]
[340014777,1728329445902,-500.0,0.00029989,2]
[340014778,1728329445912,-110.42615136,0.00029989,2]
[340014779,1728329445925,-389.57384864,0.00029989,2]
[340014780,1728329445935,-500.0,0.00029989,2]
[340014781,1728329445944,-500.0,0.00029989,2]
[340014782,1728329445954,-211.76828043,0.00029989,2]
[340014783,1728329445964,-582.02753243,0.00029989,2]
[340014784,1728329445973,-500.0,0.00029989,2]
[340014785,1728329445983,-500.0,0.00029989,2]
[340014786,1728329445993,-500.0,0.00029989,2]
[340014787,1728329446003,-300.0,0.00029989,2]
[340014788,1728329446015,-500.0,0.00029989,2]
[340014789,1728329446024,-500.0,0.00029989,2]
[340014790,1728329446033,-381.33677563,0.00029989,2]
[340014791,1728329446066,-118.66322437,0.00029989,2]
[340014792,1728329446076,-500.0,0.00029989,2]
[340014793,1728329446086,-500.0,0.00029989,2]
[340014794,1728329446095,-500.0,0.00029989,2]
[340014795,1728329446107,-500.0,0.00029989,2]
[340014796,1728329446116,-443.52228669,0.00029989,2]
[340014797,1728329446126,-500.0,0.00029989,2]
[340014798,1728329446136,-500.0,0.00029989,2]
[340014799,1728329446145,-500.0,0.00029989,2]
[340014800,1728329446154,-500.0,0.00029989,2]
[340014801,1728329446164,-500.0,0.00029989,2]
[340014802,1728329446174,-500.0,0.00029989,2]
[340014803,1728329446184,-500.0,0.00029989,2]
[340014804,1728329446194,-37.50066405,0.00029989,2]
[340014805,1728329610806,-1000.0,0.00030136,120]
[340014806,1728329610841,-1000.0,0.0003041,120]
[340014807,1728329610982,-637.6096,0.00030088,30]
[340014808,1728329611005,-209.03265574,0.00030136,30]
[340014809,1728329611046,-1000.0,0.00030684,120]
[340014810,1728329611183,-1000.0,0.00030958,120]
[340014811,1728329611254,-711.10096726,0.00031232,120]
[340014812,1728329611298,-404.647177,0.00030136,30]
[340014813,1728329611351,-288.89903274,0.00031232,120]
[340014816,1728329627049,-1000.0,0.00031506,120]
[340014817,1728329627136,-232.962423,0.00030136,30]
[340014818,1728329627166,-171.684754,0.00030137,60]
[340014819,1728329627210,-1000.0,0.0003178,120]
[340014820,1728329627237,-200.0,0.00032,120]
[340014821,1728329627260,-1000.0,0.00032054,120]
[340014822,1728329627284,-625.60636324,0.00032328,120]
[340014823,1728329627309,-2511.17767352,0.000324,120]
[340014824,1728329961668,232.962423,0.0003013,30]
[340014825,1728329982292,637.6096,0.0003,30]
[340014826,1728330026395,400.0,0.0003,60]
[340014827,1728330026417,400.0,0.0003,60]
[340014828,1728330050332,625.60636324,0.0003,120]
[340014829,1728330050354,1000.0,0.0003,120]
[340014830,1728330050377,1000.0,0.0003,120]
[340014831,1728330050399,703.82161376,0.0003,120]
[340014833,1728330395929,1671.7257578,0.000107,2]
[340014834,1728330441171,-421.73353234,0.000179,2]
[340014835,1728330441196,-170.164093,0.00018,2]
[340014836,1728330441220,-1230.14953142,0.00021,2]
[340014838,1728330546512,-1460.28840996,0.000178,2]
[340014839,1728330546536,-308.23538449,0.000179,2]
[340014840,1728330551193,-56.84682818,0.000179,2]
[340014841,1728330551216,-219.21561258,0.00021,2]
[340014842,1728330594440,33.67634015,0.00018,2]
[340014889,1728330631983,-156.75462185,0.00018,2]
[340014891,1728330631995,-199.450955,0.00023353,2]
[340014894,1728330632007,-254.08249,0.00023353,2]
[340014896,1728330632018,-467.9341868,0.00023516,2]
[340014898,1728330632028,-190.430962,0.00024262,2]
[340014900,1728330632040,-250.0,0.00024643,2]
[340014903,1728330632052,-250.0,0.00024711,2]
[340014905,1728330632064,-250.0,0.00024778,2]
[340014907,1728330632075,-769.6555745,0.00024846,2]
[340014909,1728330632087,-250.0,0.00024846,2]
[340014912,1728330632098,-250.0,0.00024914,2]
[340014914,1728330632109,-168.0,0.00024932,2]
[340014916,1728330632120,-300.0,0.00024934,2]
[340014918,1728330632131,-300.0,0.00024934,2]
[340014921,1728330632143,-5798.74732957,0.00024935,2]
[340014963,1728330638256,-500.0,0.000211,2]
[340014964,1728330638268,-500.0,0.000211,2]
[340014965,1728330638280,-500.0,0.000211,2]
[340014966,1728330638293,-500.0,0.000211,2]
[340014967,1728330638304,-346.60969467,0.000211,2]
[340014968,1728330638318,-19101.25267043,0.00024935,2]
[340014969,1728330638330,-159.534834,0.00024954,2]
[340014970,1728330638342,-250.0,0.00024981,2]
[340014971,1728330638354,-168.0,0.00025,2]
[340014972,1728330638365,-250.0,0.00025049,2]
[340014973,1728330638377,-250.0,0.00025116,2]
[340014974,1728330638389,-1001.44787248,0.00025116,14]
[340014975,1728330638399,-250.0,0.00025148,2]
[340014976,1728330638409,-250.0,0.00025184,2]
[340014977,1728330638420,-213.815686,0.00025231,2]
[340014978,1728330638430,-442.176982,0.00025232,2]
[340014979,1728330638440,-250.0,0.00025252,2]
[340014980,1728330638451,-250.0,0.00025319,2]
[340014981,1728330638461,-250.0,0.00025387,2]
[340014982,1728330638470,-250.0,0.00025454,2]
[340014983,1728330638480,-250.0,0.00025522,2]
[340014984,1728330638490,-250.0,0.00025589,2]
[340014985,1728330638501,-250.0,0.00025657,2]
[340014986,1728330638511,-250.0,0.00025725,2]
[340014987,1728330638521,-250.0,0.00025792,2]
[340014988,1728330638531,-150.303,0.00025798,2]
[340014989,1728330638541,-250.0,0.0002586,2]
[340014990,1728330638551,-168.0,0.0002589,2]
[340014991,1728330638561,-250.0,0.00025927,2]
[340014992,1728330638571,-248.2,0.000267,2]
[340014993,1728330638581,-1500.0,0.000268,2]
[340014994,1728330638591,-420.0,0.00027014,2]
[340014995,1728330638604,-173.0,0.00027185,2]
[340014996,1728330638642,-420.0,0.00027427,2]
[340014997,1728330638651,-300.0,0.000277,2]
[340014998,1728330638663,-1500.0,0.000281,2]
[340014999,1728330638673,-648.4636582,0.00028595,2]
[340015000,1728330638682,-300.0,0.000287,2]
[340015001,1728330638692,-6056.01627283,0.00028895,2]
[340015002,1728330638702,-168.0,0.00028997,2]
[340015003,1728330638711,-6056.01627283,0.00029077,2]
[340015004,1728330638721,-648.4636582,0.00029095,2]
[340015005,1728330638732,-153.68125924,0.00029179,2]
[340015006,1728330638742,-587.0,0.00029267,2]
[340015007,1728330638751,-150.0,0.000294,2]
[340015008,1728330638760,-1500.0,0.000294,2]
[340015009,1728330638770,-177.30047508,0.00029495,2]
[340015010,1728330638780,-150.0,0.000295,2]
[340015011,1728330638789,-194.08780366,0.00029528,2]
[340015012,1728330638800,-6056.01627283,0.0002956,2]
[340015013,1728330638812,-648.4636582,0.00029595,2]
[340015014,1728330638821,-5018.35192845,0.00029696,2]
[340015015,1728330638838,-1037.66434438,0.00029696,2]
[340015016,1728330638849,-300.0,0.000297,2]
[340015017,1728330638860,-361.04551547,0.0002974,5]
[340015018,1728330638870,-500.0,0.0002974,5]
[340015019,1728330638881,-327.74,0.00029899,3]
[340015020,1728330638890,-163.87,0.00029909,3]
[340015021,1728330638899,-200.0,0.00029918,2]
[340015022,1728330638909,-175.78083694,0.00029918,2]
[340015023,1728330638919,-500.0,0.00029918,2]
[340015024,1728330638929,-511.77959003,0.00029918,2]
[340015025,1728330638938,-500.0,0.00029918,2]
[340015026,1728330638948,-11120.1719358,0.00029919,4]
[340015027,1728330638957,-6030.98455732,0.00029919,4]
[340015028,1728330638967,-7687.02917408,0.00029958,10]
[340015060,1728330643127,-12767.80082592,0.00029958,10]
[340015061,1728330643137,-491.61,0.00029959,3]
[340015062,1728330643149,-17045.69,0.00029962,10]
[340015063,1728330643159,-11120.1719358,0.00029969,4]
[340015064,1728330643170,-6030.98455732,0.00029969,4]
[340015065,1728330643181,-8855.84340848,0.00029972,7]
[340015066,1728330643193,-500.0,0.00029973,5]
[340015069,1728330643203,-500.87647193,0.00029973,5]